[Event "Elite Hotels Open 2024"]
[Site "Elite Stadshotellet, Kungsgatan 6, Vaxjo, Sweden"]
[Date "2024.02.09"]
[Round "3.13"]
[White "Lilliehook, Victor"]
[Black "Crevatin, Leo"]
[Result "0-1"]
[TimeControl "15 minutes + 5 seconds per move from move one (Round 1 - 4) / 90 minutes + 30 seconds per move from move one (Round 5 - 8)"]
[BlackTitle "FM"]
[WhiteFideId "1752103"]
[BlackFideId "1726307"]
[WhiteElo "2042"]
[BlackElo "2303"]

1. e4 {[%clk 00:15:09]} {[%emt 00:21:22]} c6 {[%clk 00:15:09]} 2. d4 {[%clk
00:15:13]} {[%emt 00:00:01]} d5 {[%clk 00:15:14]} 3. exd5 {[%clk 00:15:17]}
{[%emt 00:00:01]} cxd5 {[%clk 00:15:18]} 4. c4 {[%clk 00:15:22]} Nf6 {[%clk
00:15:22]} 5. Nc3 {[%clk 00:15:26]} Nc6 {[%clk 00:15:26]} 6. Nf3 {[%emt
00:00:03]} a6 7. cxd5 {[%clk 00:15:20]} {[%emt 00:00:14]} Nxd5 {[%clk
00:15:34]} {[%emt 00:00:02]} 8. Bc4 {[%clk 00:15:24]} Be6 {[%clk 00:15:39]} 9.
Bb3 {[%clk 00:15:03]} {[%emt 00:00:27]} Na5 {[%clk 00:15:36]} {[%emt 00:00:08]}
10. Ng5 {[%clk 00:14:18]} {[%emt 00:00:50]} Qd7 {[%clk 00:15:14]} {[%emt
00:00:26]} 11. Nxe6 {[%clk 00:11:14]} {[%emt 00:03:09]} Qxe6+ {[%clk 00:15:17]}
{[%emt 00:00:02]} 12. Qe2 {[%clk 00:10:22]} {[%emt 00:00:57]} Qxe2+ {[%clk
00:13:56]} {[%emt 00:01:25]} 13. Kxe2 {[%clk 00:10:25]} {[%emt 00:00:03]} Nxb3
{[%clk 00:13:31]} {[%emt 00:00:29]} 14. Nxd5 {[%clk 00:07:54]} {[%emt
00:02:37]} Nxd4+ {[%clk 00:12:54]} {[%emt 00:00:42]} 15. Kd3 {[%clk 00:07:17]}
{[%emt 00:00:42]} O-O-O {[%clk 00:12:10]} {[%emt 00:00:49]} 16. Kxd4 {[%clk
00:05:10]} {[%emt 00:02:12]} e6 {[%clk 00:12:14]} {[%emt 00:00:01]} 17. Be3
{[%clk 00:04:11]} {[%emt 00:01:04]} Rxd5+ {[%clk 00:12:16]} {[%emt 00:00:02]}
18. Ke4 {[%clk 00:04:15]} Bd6 {[%clk 00:11:00]} {[%emt 00:01:21]} 19. Rac1+
{[%clk 00:03:34]} {[%emt 00:00:46]} Kd7 {[%clk 00:11:04]} {[%emt 00:00:01]} 20.
Rhd1 {[%clk 00:03:26]} {[%emt 00:00:13]} Rxd1 {[%clk 00:11:04]} {[%emt
00:00:05]} 21. Rxd1 {[%clk 00:03:30]} Rc8 {[%clk 00:10:49]} {[%emt 00:00:20]}
22. Bf4 {[%clk 00:02:21]} {[%emt 00:01:14]} Rc6 {[%clk 00:10:53]} 23. Ke3
{[%clk 00:01:08]} {[%emt 00:01:18]} f6 {[%clk 00:10:48]} {[%emt 00:00:10]} 24.
Bxd6 {[%clk 00:01:09]} {[%emt 00:00:05]} Rxd6 {[%clk 00:10:52]} 25. Rc1 {[%clk
00:01:12]} {[%emt 00:00:02]} e5 {[%clk 00:10:08]} {[%emt 00:00:49]} 26. h4
{[%clk 00:00:58]} {[%emt 00:00:19]} Rb6 {[%clk 00:09:47]} {[%emt 00:00:26]} 27.
Rc2 {[%clk 00:00:49]} {[%emt 00:00:14]} h5 {[%clk 00:09:31]} {[%emt 00:00:21]}
28. b3 {[%clk 00:00:26]} {[%emt 00:00:29]} Rc6 {[%clk 00:09:30]} {[%emt
00:00:06]} 29. Rd2+ {[%clk 00:00:30]} {[%emt 00:00:02]} Ke7 {[%clk 00:09:34]}
{[%emt 00:00:01]} 30. Ke4 {[%clk 00:00:13]} {[%emt 00:00:22]} g6 {[%clk
00:09:09]} {[%emt 00:00:29]} 31. Ke3 {[%clk 00:00:10]} {[%emt 00:00:08]} Rc3+
{[%clk 00:09:04]} {[%emt 00:00:10]} 32. Ke2 {[%clk 00:00:09]} {[%emt 00:00:07]}
Rc1 {[%clk 00:08:59]} {[%emt 00:00:10]} 33. g3 {[%clk 00:00:12]} {[%emt
00:00:02]} Ke6 {[%clk 00:09:00]} {[%emt 00:00:04]} 34. Kf3 {[%clk 00:00:11]}
{[%emt 00:00:06]} Rc3+ {[%clk 00:08:30]} {[%emt 00:00:35]} 35. Kg2 {[%clk
00:00:09]} {[%emt 00:00:07]} e4 {[%clk 00:08:33]} {[%emt 00:00:01]} 36. Rd8
{[%clk 00:00:10]} {[%emt 00:00:04]} Rc2 {[%clk 00:08:26]} {[%emt 00:00:12]} 37.
Rb8 {[%clk 00:00:08]} {[%emt 00:00:08]} Rxa2 {[%clk 00:08:22]} {[%emt
00:00:09]} 38. Kf1 {[%clk 00:00:08]} {[%emt 00:00:05]} b5 {[%clk 00:08:23]}
{[%emt 00:00:04]} 39. Re8+ {[%clk 00:00:09]} {[%emt 00:00:04]} Kf5 {[%clk
00:08:26]} {[%emt 00:00:01]} 40. b4 {[%clk 00:00:08]} {[%emt 00:00:07]} Rb2
{[%clk 00:07:19]} {[%emt 00:01:12]} 41. Ra8 {[%clk 00:00:11]} {[%emt 00:00:02]}
Rxb4 {[%clk 00:07:22]} {[%emt 00:00:02]} 42. Rxa6 {[%clk 00:00:15]} {[%emt
00:00:01]} Rb2 {[%clk 00:07:24]} {[%emt 00:00:02]} 43. Rb6 {[%clk 00:00:06]}
{[%emt 00:00:15]} b4 {[%clk 00:07:24]} {[%emt 00:00:05]} 44. Rb5+ {[%clk
00:00:10]} {[%emt 00:00:02]} Ke6 {[%clk 00:06:54]} {[%emt 00:00:33]} 45. Rb6+
{[%clk 00:00:14]} {[%emt 00:00:02]} Ke5 {[%clk 00:06:58]} 46. Rb5+ {[%clk
00:00:12]} {[%emt 00:00:07]} Kd4 {[%clk 00:06:51]} {[%emt 00:00:12]} 47. Rb6
{[%clk 00:00:15]} {[%emt 00:00:02]} b3 {[%clk 00:06:49]} {[%emt 00:00:06]} 48.
Rxf6 {[%clk 00:00:18]} {[%emt 00:00:02]} Rc2 {[%clk 00:06:39]} {[%emt
00:00:14]} 49. Rb6 {[%clk 00:00:07]} {[%emt 00:00:17]} b2 {[%clk 00:06:43]}
{[%emt 00:00:02]} 50. Kg2 {[%clk 00:00:10]} {[%emt 00:00:02]} e3 {[%clk
00:06:43]} {[%emt 00:00:05]} 51. Kh3 {[%clk 00:00:06]} {[%emt 00:00:09]} exf2
{[%clk 00:06:31]} {[%emt 00:00:16]} 0-1

[Event "Elite Hotels Open 2024"]
[Site "Elite Stadshotellet, Kungsgatan 6, Vaxjo, Sweden"]
[Date "2024.02.09"]
[Round "3.14"]
[White "Falkevall, Axel"]
[Black "Mattsson, Michael"]
[Result "1-0"]
[TimeControl "15 minutes + 5 seconds per move from move one (Round 1 - 4) / 90 minutes + 30 seconds per move from move one (Round 5 - 8)"]
[WhiteTitle "FM"]
[WhiteFideId "1735560"]
[BlackFideId "1708961"]
[WhiteElo "2290"]
[BlackElo "2033"]

1. e4 {[%clk 00:15:07]} {[%emt 00:00:01]} e5 {[%clk 00:15:09]} {[%emt
00:00:02]} 2. Nf3 {[%clk 00:15:11]} {[%emt 00:00:01]} Nc6 {[%clk 00:15:12]}
{[%emt 00:00:02]} 3. Bb5 {[%clk 00:15:08]} {[%emt 00:00:08]} a6 {[%clk
00:15:16]} {[%emt 00:00:02]} 4. Ba4 {[%clk 00:15:12]} Nf6 {[%clk 00:15:20]}
{[%emt 00:00:02]} 5. O-O {[%clk 00:15:15]} {[%emt 00:00:02]} Be7 {[%clk
00:15:22]} {[%emt 00:00:03]} 6. Re1 {[%clk 00:15:18]} {[%emt 00:00:01]} b5
{[%clk 00:15:26]} {[%emt 00:00:02]} 7. Bb3 {[%clk 00:15:22]} O-O {[%clk
00:15:10]} {[%emt 00:00:21]} 8. a4 {[%clk 00:15:15]} {[%emt 00:00:13]} b4
{[%clk 00:15:02]} {[%emt 00:00:14]} 9. d4 {[%clk 00:15:10]} {[%emt 00:00:10]}
d6 {[%clk 00:14:02]} {[%emt 00:01:05]} 10. h3 {[%clk 00:14:48]} {[%emt
00:00:24]} exd4 {[%clk 00:13:07]} {[%emt 00:01:02]} 11. Nxd4 {[%clk 00:14:33]}
{[%emt 00:00:20]} Na5 {[%clk 00:13:08]} {[%emt 00:00:05]} 12. Ba2 {[%clk
00:14:01]} {[%emt 00:00:36]} c5 {[%clk 00:13:11]} {[%emt 00:00:02]} 13. Nf5
{[%clk 00:13:46]} {[%emt 00:00:19]} Bxf5 {[%clk 00:13:05]} {[%emt 00:00:12]} 14.
exf5 {[%clk 00:13:50]} {[%emt 00:00:01]} Rb8 {[%clk 00:12:21]} {[%emt
00:00:49]} 15. Bf4 {[%clk 00:13:21]} {[%emt 00:00:33]} Rb6 {[%clk 00:11:36]}
{[%emt 00:00:50]} 16. Nd2 {[%clk 00:11:16]} {[%emt 00:02:09]} d5 {[%clk
00:11:39]} {[%emt 00:00:04]} 17. c3 {[%clk 00:10:33]} {[%emt 00:00:47]} Qd7
{[%clk 00:10:27]} {[%emt 00:01:18]} 18. Nf3 {[%clk 00:09:14]} {[%emt 00:01:24]}
Bd6 {[%clk 00:09:51]} {[%emt 00:00:42]} 19. Bg5 {[%clk 00:08:17]} {[%emt
00:01:01]} bxc3 {[%clk 00:08:33]} {[%emt 00:01:23]} 20. bxc3 {[%clk 00:07:18]}
{[%emt 00:01:05]} Qxf5 {[%clk 00:08:12]} {[%emt 00:00:25]} 21. Bxf6 {[%clk
00:06:53]} {[%emt 00:00:31]} Qxf6 {[%clk 00:08:03]} {[%emt 00:00:13]} 22. Qxd5
{[%clk 00:06:37]} {[%emt 00:00:21]} Qxc3 {[%clk 00:07:37]} {[%emt 00:00:32]} 23.
Rad1 {[%clk 00:04:10]} {[%emt 00:02:32]} c4 {[%clk 00:05:01]} {[%emt 00:02:41]}
24. Ne5 {[%clk 00:03:07]} {[%emt 00:01:08]} Bxe5 {[%clk 00:04:35]} {[%emt
00:00:32]} 25. Rxe5 {[%clk 00:03:10]} {[%emt 00:00:02]} Nb3 {[%clk 00:04:16]}
{[%emt 00:00:25]} 26. Re4 {[%clk 00:02:35]} {[%emt 00:00:38]} Rb4 {[%clk
00:03:47]} {[%emt 00:00:35]} 27. Qd6 {[%clk 00:02:07]} {[%emt 00:00:33]} g6
{[%clk 00:03:19]} {[%emt 00:00:34]} 28. Re3 {[%clk 00:01:38]} {[%emt 00:00:33]}
Qc2 {[%clk 00:03:03]} {[%emt 00:00:22]} 29. Bb1 {[%clk 00:01:41]} {[%emt
00:00:02]} Qxd1+ {[%clk 00:01:01]} {[%emt 00:02:07]} 30. Qxd1 {[%clk 00:01:44]}
{[%emt 00:00:02]} Rxa4 {[%clk 00:01:05]} {[%emt 00:00:02]} 31. Kh2 {[%clk
00:01:37]} {[%emt 00:00:12]} Ra1 {[%clk 00:00:55]} {[%emt 00:00:16]} 32. Qc2
{[%clk 00:01:28]} {[%emt 00:00:13]} Rc8 {[%clk 00:00:59]} {[%emt 00:00:02]} 33.
Rxb3 {[%clk 00:01:30]} {[%emt 00:00:03]} 1-0

[Event "Elite Hotels Open 2024"]
[Site "Elite Stadshotellet, Kungsgatan 6, Vaxjo, Sweden"]
[Date "2024.02.09"]
[Round "3.15"]
[White "Rydstrom, Tom"]
[Black "Nilsson, Oliver"]
[Result "1-0"]
[TimeControl "15 minutes + 5 seconds per move from move one (Round 1 - 4) / 90 minutes + 30 seconds per move from move one (Round 5 - 8)"]
[WhiteTitle "FM"]
[WhiteFideId "1714830"]
[BlackFideId "1730177"]
[WhiteElo "2254"]
[BlackElo "1973"]

1. e4 {[%clk 00:15:09]} {[%emt 00:27:31]} e5 {[%clk 00:15:09]} {[%emt
00:00:02]} 2. Nf3 {[%clk 00:15:13]} {[%emt 00:00:01]} Nc6 {[%clk 00:15:13]} 3.
Bc4 {[%clk 00:15:17]} Nf6 {[%clk 00:15:17]} {[%emt 00:00:01]} 4. d3 {[%clk
00:15:21]} h6 {[%clk 00:15:21]} 5. Nc3 {[%clk 00:15:21]} {[%emt 00:00:04]} d6
{[%clk 00:15:25]} {[%emt 00:00:02]} 6. a3 {[%clk 00:15:17]} {[%emt 00:00:10]}
g6 {[%clk 00:15:22]} {[%emt 00:00:08]} 7. h3 {[%clk 00:14:48]} {[%emt
00:00:35]} Bg7 {[%clk 00:15:24]} {[%emt 00:00:03]} 8. O-O {[%clk 00:14:48]}
{[%emt 00:00:05]} O-O {[%clk 00:15:22]} {[%emt 00:00:07]} 9. Re1 {[%clk
00:14:51]} {[%emt 00:00:02]} Kh7 {[%clk 00:14:37]} {[%emt 00:00:50]} 10. Be3
{[%clk 00:14:46]} {[%emt 00:00:10]} Be6 {[%clk 00:13:41]} {[%emt 00:01:01]} 11.
Bxe6 {[%clk 00:14:49]} {[%emt 00:00:02]} fxe6 {[%clk 00:13:45]} 12. d4 {[%clk
00:14:51]} {[%emt 00:00:03]} Nh5 {[%clk 00:13:14]} {[%emt 00:00:37]} 13. dxe5
{[%clk 00:13:46]} {[%emt 00:01:10]} dxe5 {[%clk 00:13:18]} {[%emt 00:00:02]} 14.
Qxd8 {[%clk 00:13:34]} {[%emt 00:00:17]} Raxd8 {[%clk 00:13:22]} 15. Rad1
{[%clk 00:13:38]} {[%emt 00:00:01]} Nd4 {[%clk 00:13:17]} {[%emt 00:00:10]} 16.
Bxd4 {[%clk 00:13:19]} {[%emt 00:00:24]} exd4 {[%clk 00:13:21]} {[%emt
00:00:02]} 17. Nb5 {[%clk 00:13:12]} {[%emt 00:00:12]} Rd7 {[%clk 00:08:59]}
{[%emt 00:04:26]} 18. c3 {[%clk 00:11:03]} {[%emt 00:02:14]} d3 {[%clk
00:07:05]} {[%emt 00:01:59]} 19. Nbd4 {[%clk 00:10:45]} {[%emt 00:00:22]} Nf4
{[%clk 00:06:21]} {[%emt 00:00:49]} 20. b4 {[%clk 00:05:14]} {[%emt 00:05:36]}
Bxd4 {[%clk 00:05:45]} {[%emt 00:00:41]} 21. cxd4 {[%clk 00:03:23]} {[%emt
00:01:56]} Ne2+ {[%clk 00:05:46]} {[%emt 00:00:04]} 22. Kf1 {[%clk 00:03:15]}
{[%emt 00:00:13]} Rxd4 {[%clk 00:04:28]} {[%emt 00:01:23]} 23. Nxd4 {[%clk
00:03:07]} {[%emt 00:00:13]} Ng3+ {[%clk 00:04:30]} {[%emt 00:00:02]} 24. Kg1
{[%clk 00:03:11]} {[%emt 00:00:02]} 1-0

[Event "Elite Hotels Open 2024"]
[Site "Elite Stadshotellet, Kungsgatan 6, Vaxjo, Sweden"]
[Date "2024.02.09"]
[Round "3.16"]
[White "Eriksson, Kristian"]
[Black "Grahn, Vidar"]
[Result "1-0"]
[TimeControl "15 minutes + 5 seconds per move from move one (Round 1 - 4) / 90 minutes + 30 seconds per move from move one (Round 5 - 8)"]
[WhiteFideId "1705172"]
[BlackFideId "1744780"]
[WhiteElo "2035"]
[BlackElo "2234"]

1. e4 {[%clk 00:15:07]} {[%emt 00:00:01]} c5 {[%clk 00:15:10]} 2. Nf3 {[%clk
00:15:09]} {[%emt 00:00:03]} e6 {[%clk 00:15:14]} {[%emt 00:00:01]} 3. Nc3
{[%clk 00:15:06]} {[%emt 00:00:08]} Nc6 {[%clk 00:15:17]} {[%emt 00:00:01]} 4.
Bb5 {[%clk 00:15:06]} {[%emt 00:00:05]} Nd4 {[%clk 00:15:21]} 5. Bc4 {[%clk
00:15:01]} {[%emt 00:00:11]} a6 {[%clk 00:15:25]} {[%emt 00:00:01]} 6. d3
{[%clk 00:14:50]} {[%emt 00:00:16]} b5 {[%clk 00:15:15]} {[%emt 00:00:15]} 7.
Bb3 {[%clk 00:14:52]} {[%emt 00:00:02]} Bb7 {[%clk 00:14:25]} {[%emt 00:00:55]}
8. Nxd4 {[%clk 00:14:30]} {[%emt 00:00:27]} cxd4 {[%clk 00:14:27]} {[%emt
00:00:01]} 9. Ne2 {[%clk 00:14:31]} {[%emt 00:00:05]} Bc5 {[%clk 00:14:26]}
{[%emt 00:00:07]} 10. O-O {[%clk 08:04:09]} {[%emt 00:00:27]} Ne7 {[%clk
00:14:21]} {[%emt 00:00:10]} 11. c3 {[%clk 00:13:32]} {[%emt 00:00:42]} Nc6
{[%clk 00:14:01]} {[%emt 00:00:25]} 12. Ng3 {[%clk 00:12:57]} {[%emt 00:00:40]}
h5 {[%clk 00:13:19]} {[%emt 00:00:47]} 13. h3 {[%clk 00:11:44]} {[%emt
00:01:18]} h4 {[%clk 00:12:57]} {[%emt 00:00:27]} 14. Nh5 {[%clk 00:11:13]}
{[%emt 00:00:37]} g6 {[%clk 00:12:43]} {[%emt 00:00:19]} 15. Nf4 {[%clk
00:11:02]} {[%emt 00:00:16]} Qb6 {[%clk 00:12:24]} {[%emt 00:00:24]} 16. a4
{[%clk 00:10:36]} {[%emt 00:00:31]} O-O-O {[%clk 00:11:04]} {[%emt 00:01:25]}
17. axb5 {[%clk 00:10:17]} {[%emt 00:00:25]} axb5 {[%clk 00:11:05]} {[%emt
00:00:03]} 18. Bd2 {[%clk 00:09:27]} {[%emt 00:00:54]} g5 {[%clk 00:10:54]}
{[%emt 00:00:17]} 19. Ne2 {[%clk 00:09:15]} {[%emt 00:00:16]} g4 {[%clk
00:08:51]} {[%emt 00:02:08]} 20. cxd4 {[%clk 00:08:06]} {[%emt 00:01:14]} Bd6
{[%clk 00:07:38]} {[%emt 00:01:18]} 21. d5 {[%clk 00:07:26]} {[%emt 00:00:45]}
exd5 {[%clk 00:07:29]} {[%emt 00:00:14]} 22. exd5 {[%clk 00:07:17]} {[%emt
00:00:15]} Nb4 {[%clk 00:06:57]} {[%emt 00:00:37]} 23. Be3 {[%clk 00:06:45]}
{[%emt 00:00:36]} Qc7 {[%clk 00:05:58]} {[%emt 00:01:04]} 24. Rc1 {[%clk
00:06:33]} {[%emt 00:00:16]} Nc6 {[%clk 00:06:01]} {[%emt 00:00:03]} 25. dxc6
{[%clk 00:06:20]} {[%emt 00:00:18]} Bxc6 {[%clk 00:06:03]} {[%emt 00:00:03]} 26.
Nd4 {[%clk 00:05:08]} {[%emt 00:01:16]} gxh3 {[%clk 00:06:02]} {[%emt
00:00:06]} 27. Nxc6 {[%clk 00:04:58]} {[%emt 00:00:15]} dxc6 {[%clk 00:05:54]}
{[%emt 00:00:13]} 28. Qg4+ {[%clk 00:04:50]} {[%emt 00:00:13]} Kb8 {[%clk
00:05:31]} {[%emt 00:00:29]} 29. Qxh3 {[%clk 00:04:37]} {[%emt 00:00:18]} Rdg8
{[%clk 00:05:32]} {[%emt 00:00:04]} 30. Bd5 {[%clk 00:04:02]} {[%emt 00:00:40]}
c5 {[%clk 00:04:42]} {[%emt 00:00:54]} 31. Ra1 {[%clk 00:03:59]} {[%emt
00:00:09]} Qe7 {[%clk 00:04:34]} {[%emt 00:00:13]} 32. Ra8+ {[%clk 00:03:57]}
{[%emt 00:00:06]} Kc7 {[%clk 00:04:38]} {[%emt 00:00:01]} 33. Ra7+ {[%clk
00:03:58]} {[%emt 00:00:04]} 1-0

[Event "Elite Hotels Open 2024"]
[Site "Elite Stadshotellet, Kungsgatan 6, Vaxjo, Sweden"]
[Date "2024.02.09"]
[Round "4.1"]
[White "Hillarp, Tiger"]
[Black "Akesson, Ralf"]
[Result "1/2-1/2"]
[TimeControl "15 minutes + 5 seconds per move from move one (Round 1 - 4) / 90 minutes + 30 seconds per move from move one (Round 5 - 8)"]
[WhiteTitle "GM"]
[BlackTitle "GM"]
[WhiteFideId "1700812"]
[BlackFideId "1700120"]
[WhiteElo "2476"]
[BlackElo "2378"]

1. Nf3 {[%clk 00:15:07]} {[%emt 00:00:02]} Nf6 {[%clk 00:15:01]} {[%emt
00:00:09]} 2. g3 {[%clk 00:15:07]} {[%emt 00:00:06]} g6 {[%clk 00:14:28]}
{[%emt 00:00:38]} 3. Bg2 {[%clk 00:15:09]} {[%emt 00:00:03]} Bg7 {[%clk
00:14:32]} 4. O-O {[%clk 00:15:11]} {[%emt 00:00:03]} O-O {[%clk 00:14:35]}
{[%emt 00:00:02]} 5. c4 {[%clk 00:15:15]} {[%emt 00:00:02]} c6 {[%clk
00:14:33]} {[%emt 00:00:07]} 6. b3 {[%clk 00:15:10]} {[%emt 00:00:10]} Ne4
{[%clk 00:13:06]} {[%emt 00:01:31]} 7. d4 {[%clk 00:15:13]} {[%emt 00:00:02]}
d5 {[%clk 00:13:09]} {[%emt 00:00:01]} 8. Bb2 {[%clk 00:15:05]} {[%emt
00:00:14]} Bf5 {[%clk 00:13:00]} {[%emt 00:00:14]} 9. Ne5 {[%clk 00:14:38]}
{[%emt 00:00:32]} Nd7 {[%clk 00:12:24]} {[%emt 00:00:41]} 10. Nd3 {[%clk
00:13:40]} {[%emt 00:01:03]} Ndf6 {[%clk 00:11:19]} {[%emt 00:01:10]} 11. Na3
{[%clk 00:10:48]} {[%emt 00:02:57]} a6 {[%clk 00:09:44]} {[%emt 00:01:40]} 12.
f3 {[%clk 00:08:31]} {[%emt 00:02:22]} Nd6 {[%clk 00:09:29]} {[%emt 00:00:20]}
13. c5 {[%clk 00:08:16]} {[%emt 00:00:20]} Nb5 {[%clk 00:08:45]} {[%emt
00:00:49]} 14. Nc2 {[%clk 00:08:13]} {[%emt 00:00:08]} Qc8 {[%clk 00:07:52]}
{[%emt 00:00:57]} 15. a4 {[%clk 00:07:30]} {[%emt 00:00:48]} Nc7 {[%clk
00:07:43]} {[%emt 00:00:14]} 16. Nf2 {[%clk 00:07:27]} {[%emt 00:00:08]} Nd7
{[%clk 00:06:20]} {[%emt 00:01:29]} 17. e4 {[%clk 00:03:31]} {[%emt 00:04:00]}
dxe4 {[%clk 00:06:04]} {[%emt 00:00:21]} 18. fxe4 {[%clk 00:03:35]} {[%emt
00:00:02]} Be6 {[%clk 00:06:07]} {[%emt 00:00:01]} 19. b4 {[%clk 00:03:38]}
{[%emt 00:00:02]} a5 {[%clk 00:05:58]} {[%emt 00:00:14]} 20. Qd2 {[%clk
00:02:53]} {[%emt 00:00:49]} Rd8 {[%clk 00:04:56]} {[%emt 00:01:08]} 21. Ne3
{[%clk 00:02:09]} {[%emt 00:00:49]} axb4 {[%clk 00:04:31]} {[%emt 00:00:30]} 22.
Qxb4 {[%clk 00:01:39]} {[%emt 00:00:35]} Na6 {[%clk 00:03:24]} {[%emt
00:01:13]} 23. Qa3 {[%clk 00:01:43]} {[%emt 00:00:01]} Nf6 {[%clk 00:03:26]}
{[%emt 00:00:02]} 24. Rad1 {[%clk 00:01:18]} {[%emt 00:00:30]} Nc7 {[%clk
00:03:05]} 1/2-1/2

[Event "Elite Hotels Open 2024"]
[Site "Elite Stadshotellet, Kungsgatan 6, Vaxjo, Sweden"]
[Date "2024.02.09"]
[Round "4.2"]
[White "Ostlund, Joar"]
[Black "Pantzar, Milton"]
[Result "1/2-1/2"]
[TimeControl "15 minutes + 5 seconds per move from move one (Round 1 - 4) / 90 minutes + 30 seconds per move from move one (Round 5 - 8)"]
[WhiteTitle "FM"]
[BlackTitle "IM"]
[WhiteFideId "1735020"]
[BlackFideId "1721003"]
[WhiteElo "2327"]
[BlackElo "2468"]

1. d4 {[%clk 00:15:08]} {[%emt 00:00:01]} d5 {[%clk 00:15:08]} {[%emt
00:00:02]} 2. c4 {[%clk 00:15:12]} {[%emt 00:00:01]} e6 {[%clk 00:15:11]}
{[%emt 00:00:02]} 3. Nc3 {[%clk 00:15:14]} {[%emt 00:00:02]} Nf6 {[%clk
00:15:14]} {[%emt 00:00:02]} 4. cxd5 {[%clk 00:15:17]} {[%emt 00:00:03]} exd5
{[%clk 00:15:17]} {[%emt 00:00:02]} 5. Bg5 {[%clk 00:15:20]} {[%emt 00:00:02]}
c6 {[%clk 00:15:20]} {[%emt 00:00:02]} 6. e3 {[%clk 00:15:23]} {[%emt
00:00:02]} Bd6 {[%clk 00:15:00]} {[%emt 00:00:25]} 7. Bd3 {[%clk 00:15:18]}
{[%emt 00:00:10]} O-O {[%clk 00:15:01]} {[%emt 00:00:03]} 8. Nf3 {[%clk
00:15:16]} {[%emt 00:00:08]} h6 {[%clk 00:14:13]} {[%emt 00:00:52]} 9. Bh4
{[%clk 00:15:16]} {[%emt 00:00:05]} Be6 {[%clk 00:14:17]} {[%emt 00:00:02]} 10.
Ne5 {[%clk 00:14:58]} {[%emt 00:00:23]} c5 {[%clk 00:13:31]} {[%emt 00:00:51]}
11. O-O {[%clk 00:14:55]} {[%emt 00:00:07]} cxd4 {[%clk 00:13:12]} {[%emt
00:00:25]} 12. exd4 {[%clk 00:14:57]} {[%emt 00:00:03]} Nc6 {[%clk 00:13:16]}
{[%emt 00:00:02]} 13. Nxc6 {[%clk 00:14:22]} {[%emt 00:00:39]} bxc6 {[%clk
00:13:19]} {[%emt 00:00:02]} 14. Rc1 {[%clk 00:13:53]} {[%emt 00:00:34]} Rb8
{[%clk 00:11:13]} {[%emt 00:02:11]} 15. Na4 {[%clk 00:13:01]} {[%emt 00:00:58]}
g5 {[%clk 00:09:05]} {[%emt 00:02:12]} 16. Bg3 {[%clk 00:13:01]} {[%emt
00:00:05]} Bg4 {[%clk 00:08:38]} {[%emt 00:00:32]} 17. Qc2 {[%clk 00:11:16]}
{[%emt 00:01:50]} Bxg3 {[%clk 00:07:56]} {[%emt 00:00:47]} 18. fxg3 {[%clk
00:09:26]} {[%emt 00:01:55]} Kg7 {[%clk 00:07:44]} {[%emt 00:00:17]} 19. h3
{[%clk 00:08:15]} {[%emt 00:01:17]} Be6 {[%clk 00:06:30]} {[%emt 00:01:18]} 20.
Nc5 {[%clk 00:06:43]} {[%emt 00:01:37]} Qd6 {[%clk 00:06:24]} {[%emt 00:00:11]}
21. g4 {[%clk 00:04:34]} {[%emt 00:02:14]} Bxg4 {[%clk 00:04:02]} {[%emt
00:02:27]} 22. Rf2 {[%clk 00:00:12]} {[%emt 00:04:27]} Bh5 {[%clk 00:02:22]}
{[%emt 00:01:44]} 23. Rcf1 {[%clk 00:00:13]} {[%emt 00:00:04]} Ne4 {[%clk
00:02:00]} {[%emt 00:00:27]} 24. Bxe4 {[%clk 00:00:07]} {[%emt 00:00:11]} dxe4
{[%clk 00:02:03]} {[%emt 00:00:02]} 25. Qxe4 {[%clk 00:00:06]} {[%emt
00:00:06]} Rbe8 {[%clk 00:01:53]} {[%emt 00:00:15]} 26. Qd3 {[%clk 00:00:06]}
{[%emt 00:00:05]} Rd8 {[%clk 00:01:46]} {[%emt 00:00:12]} 27. Qc3 {[%clk
00:00:07]} {[%emt 00:00:04]} Rde8 {[%clk 00:00:23]} {[%emt 00:01:28]} 28. d5+
{[%clk 00:00:08]} {[%emt 00:00:04]} Kg8 {[%clk 00:00:27]} 29. dxc6 {[%clk
00:00:07]} {[%emt 00:00:06]} Qxc6 {[%clk 00:00:30]} {[%emt 00:00:02]} 30. Rf6
{[%clk 00:00:08]} {[%emt 00:00:04]} Qd5 {[%clk 00:00:27]} {[%emt 00:00:09]} 31.
Rxh6 {[%clk 00:00:10]} {[%emt 00:00:02]} f6 {[%clk 00:00:19]} {[%emt 00:00:13]}
32. Rxh5 {[%clk 00:00:14]} {[%emt 00:00:01]} Re2 {[%clk 00:00:23]} {[%emt
00:00:01]} 33. Rf2 {[%clk 00:00:07]} {[%emt 00:00:13]} Qd1+ {[%clk 00:00:27]}
34. Rf1 {[%clk 00:00:10]} {[%emt 00:00:02]} Qd5 {[%clk 00:00:31]} 35. Rf2
{[%clk 00:00:09]} {[%emt 00:00:06]} Qd1+ {[%clk 00:00:32]} {[%emt 00:00:03]} 36.
Kh2 {[%clk 00:00:07]} {[%emt 00:00:07]} Rxf2 {[%clk 00:00:26]} {[%emt
00:00:11]} 37. Qc4+ {[%clk 00:00:11]} {[%emt 00:00:01]} Rf7 {[%clk 00:00:23]}
{[%emt 00:00:08]} 38. Ne4 {[%clk 00:00:08]} {[%emt 00:00:08]} Rf1 {[%clk
00:00:16]} {[%emt 00:00:13]} 39. Qc8+ {[%emt 00:00:07]} Rf8 {[%clk 00:00:18]}
40. Rh8+ {[%clk 00:00:08]} {[%emt 00:00:05]} Kxh8 {[%clk 00:00:20]} {[%emt
00:00:03]} 41. Qxf8+ {[%clk 00:00:11]} {[%emt 00:00:01]} Kh7 {[%clk 00:00:24]}
{[%emt 00:00:01]} 42. Qf7+ {[%clk 00:00:09]} {[%emt 00:00:07]} Kh6 {[%clk
00:00:20]} {[%emt 00:00:09]} 43. Qf8+ {[%clk 00:00:10]} {[%emt 00:00:05]} Kh7
{[%clk 00:00:16]} {[%emt 00:00:09]} 44. Qf7+ {[%clk 00:00:07]} {[%emt
00:00:08]} Kh6 {[%clk 00:00:20]} 45. Qf8+ {[%clk 00:00:08]} {[%emt 00:00:05]}
Kh7 {[%clk 00:00:21]} {[%emt 00:00:05]} 46. Qf7+ {[%clk 00:00:09]} 1/2-1/2